fUSD/lending_fUSD_20260508
["ID","MTS","AMOUNT","RATE_DAILY","PERIOD"]
[421800996,1778175052000,-329.42620173,0.00039024,30]
[421800986,1778175052000,-9839.36732878,0.00039,5]
[421800993,1778175052000,-167.22,0.00039,30]
[421800991,1778175052000,-288.12,0.00039,30]
[421800987,1778175052000,-22377.27,0.00039,2]
[421800992,1778175052000,-850.04,0.00039,14]
[421800989,1778175052000,-157.56533023,0.00039,120]
[421800994,1778175052000,-161.39104467,0.00039,120]
[421800995,1778175052000,-213.23,0.00039,120]
[421800998,1778175052000,-4122.0,0.00039027,30]
[421801009,1778175052000,-150.64456526,0.00039182,120]
[421801004,1778175052000,-2306.0,0.00039123,11]
[421801008,1778175052000,-150.92541517,0.00039182,120]
[421801003,1778175052000,-150.0,0.00039105,120]
[421801006,1778175052000,-2703.1948,0.00039173,2]
[421801007,1778175052000,-4118.0,0.00039177,30]
[421800988,1778175052000,-17283.26,0.00039,2]
[421801005,1778175052000,-2306.0,0.00039157,11]
[421801002,1778175052000,-160.0,0.000391,70]
[421801001,1778175052000,-160.0,0.000391,70]
[421801010,1778175052000,-5000.0,0.00039199,2]
[421801000,1778175052000,-550.06273704,0.00039065,2]
[421801013,1778175052000,-200.0,0.000392,16]
[421801014,1778175052000,-5077.42,0.00039243,120]
[421801023,1778175052000,-1934.38338737,0.00039369,30]
[421800999,1778175052000,-2703.1948,0.00039036,2]
[421800982,1778175052000,-4000.0,0.00039,90]
[421800981,1778175052000,-4282.0,0.00039,21]
[421800980,1778175052000,-10000.0,0.00039,7]
[421801016,1778175052000,-2005.9555727,0.00039299,30]
[421800959,1778175052000,-185.757503,0.0003888,30]
[421800957,1778175052000,-151.0,0.0003888,30]
[421800961,1778175052000,-151.0,0.0003888,30]
[421800956,1778175052000,-185.757503,0.0003888,30]
[421800960,1778175052000,-185.757503,0.0003888,30]
[421800955,1778175052000,-185.757503,0.0003888,30]
[421800958,1778175052000,-151.0,0.0003888,30]
[421800963,1778175052000,-185.757503,0.0003888,30]
[421800973,1778175052000,-150.0,0.0003897,30]
[421800966,1778175052000,-2703.1948,0.00038899,2]
[421800967,1778175052000,-1203.15864,0.000389,120]
[421800964,1778175052000,-185.757503,0.0003888,30]
[421800965,1778175052000,-1581.0,0.00038885,11]
[421800962,1778175052000,-151.0,0.0003888,30]
[421800968,1778175052000,-2000.0,0.000389,7]
[421800970,1778175052000,-150.92541517,0.00038908,120]
[421800969,1778175052000,-1560.0,0.00038904,30]
[421800971,1778175052000,-150.64456526,0.00038908,120]
[421800974,1778175052000,-221.324024,0.00038974,30]
[421800975,1778175052000,-4118.0,0.00038981,30]
[421800976,1778175052000,-50000.0,0.00039,40]
[421800977,1778175052000,-3106.50170902,0.00039,7]
[421800979,1778175052000,-2500.0,0.00039,90]
[421800985,1778175052000,-2112.22,0.00039,2]
[421800978,1778175052000,-158.60547995,0.00039,5]
[421800984,1778175052000,-3371.34,0.00039,2]
[421800983,1778175052000,-11149.37,0.00039,2]
[421800972,1778175052000,-150.0,0.00038966,30]
[421801020,1778175052000,-802.2302,0.0003931,2]
[421801022,1778175052000,-315.61926631,0.00039356,60]
[421801049,1778175052000,-361.93934905,0.00039616,30]
[421801050,1778175052000,-500.0,0.00039631,30]
[421801052,1778175052000,-503.0,0.00039632,15]
[421801057,1778175052000,-1672.7364795,0.00039684,30]
[421801053,1778175052000,-1734.62772924,0.00039639,30]
[421801051,1778175052000,-301.42,0.00039631,30]
[421801058,1778175052000,-300.0,0.00039685,30]
[421801059,1778175052000,-510.87423594,0.00039686,60]
[421801054,1778175052000,-150.0,0.0003964,2]
[421801056,1778175052000,-277.41988545,0.00039684,7]
[421801055,1778175052000,-152.0,0.00039673,9]
[421801070,1778175052000,-500.0,0.00039726,15]
[421801061,1778175052000,-277.41988545,0.0003969,7]
[421801071,1778175052000,-500.0,0.00039726,15]
[421801072,1778175052000,-500.0,0.00039726,15]
[421801067,1778175052000,-2703.1948,0.00039721,2]
[421801064,1778175052000,-3088.38,0.000397,120]
[421801065,1778175052000,-1673.9,0.000397,120]
[421801063,1778175052000,-3088.385,0.000397,120]
[421801068,1778175052000,-500.0,0.00039726,15]
[421801069,1778175052000,-500.0,0.00039726,15]
[421801066,1778175052000,-896.164,0.00039716,120]
[421801075,1778175052000,-500.0,0.00039726,15]
[421801073,1778175052000,-500.0,0.00039726,15]
[421801076,1778175052000,-559.65072144,0.00039726,15]
[421801074,1778175052000,-500.0,0.00039726,15]
[421801015,1778175052000,-2306.0,0.00039286,11]
[421801060,1778175052000,-180.76,0.00039689,120]
[421801044,1778175052000,-180.76,0.00039589,120]
[421801062,1778175052000,-3088.385,0.000397,120]
[421801039,1778175052000,-300.0,0.0003957,2]
[421801041,1778175052000,-150.0,0.00039579,2]
[421801017,1778175052000,-509.999999,0.000393,2]
[421801011,1778175052000,-5000.0,0.00039199,2]
[421801018,1778175052000,-2703.1948,0.0003931,2]
[421801021,1778175052000,-4123.0,0.00039327,30]
[421801019,1778175052000,-402.1319,0.0003931,2]
[421801024,1778175052000,-4118.0,0.00039372,30]
[421801028,1778175052000,-228664.5455,0.00039427,30]
[421801025,1778175052000,-5000.0,0.00039409,2]
[421801035,1778175052000,-192.73112661,0.00039565,2]
[421801031,1778175052000,-150.92541517,0.00039456,120]
[421801026,1778175052000,-5000.0,0.00039409,2]
[421801034,1778175052000,-271.14,0.0003951,120]
[421801027,1778175052000,-5000.0,0.00039409,2]
[421801012,1778175052000,-5000.0,0.00039199,2]
[421801033,1778175052000,-2500.0,0.000395,90]
[421801029,1778175052000,-2703.1948,0.00039447,2]
[421801045,1778175052000,-1798.80895522,0.00039593,30]
[421801037,1778175052000,-4119.0,0.00039568,30]
[421801047,1778175052000,-150.9043201,0.00039594,2]
[421801040,1778175052000,-271.14,0.00039578,120]
[421801042,1778175052000,-150.0,0.00039583,2]
[421801046,1778175052000,-158.13126969,0.00039594,2]
[421801038,1778175052000,-300.0,0.0003957,2]
[421801043,1778175052000,-2703.1948,0.00039584,2]
[421801036,1778175052000,-1865.36488657,0.00039566,30]
[421801030,1778175052000,-1560.0,0.00039452,30]
[421801032,1778175052000,-150.64456526,0.00039456,120]
[421801048,1778175052000,-150.17916506,0.00039594,2]
[421801116,1778175053000,-1010.29698548,0.0004,7]
[421801115,1778175053000,-385.96982443,0.0004,4]
[421801112,1778175053000,-4170.76903972,0.0004,2]
[421801107,1778175053000,-50000.0,0.0004,39]
[421801113,1778175053000,-10847.86553459,0.0004,2]
[421801121,1778175053000,-383.18813658,0.0004,120]
[421801122,1778175053000,-1526.860001,0.0004,4]
[421801111,1778175053000,-24104.29413509,0.0004,2]
[421801110,1778175053000,-2000000.0,0.0004,120]
[421801109,1778175053000,-30000.0,0.0004,120]
[421801118,1778175053000,-10000.45698731,0.0004,6]
[421801114,1778175053000,-609.80700365,0.0004,2]
[421801119,1778175053000,-10000.12345678,0.0004,5]
[421801130,1778175053000,-10452.27117778,0.0004,7]
[421801120,1778175053000,-5577.00885037,0.0004,4]
[421801125,1778175053000,-655.18188859,0.0004,120]
[421801123,1778175053000,-3122.0,0.0004,30]
[421801127,1778175053000,-435.17971994,0.0004,7]
[421801126,1778175053000,-500.0,0.0004,2]
[421801128,1778175053000,-24000.0,0.0004,10]
[421801129,1778175053000,-2500.0,0.0004,90]
[421801131,1778175053000,-5000.0,0.0004,2]
[421801133,1778175053000,-30000.0,0.0004,120]
[421801132,1778175053000,-800700.0,0.0004,14]
[421801124,1778175053000,-647.9898844,0.0004,12]
[421801134,1778175053000,-151.0,0.0004,14]
[421801103,1778175053000,-500.0,0.00039999,31]
[421801117,1778175053000,-3000.0,0.0004,7]
[421801104,1778175053000,-500.0,0.00039999,31]
[421801078,1778175053000,-500.0,0.00039726,15]
[421801101,1778175053000,-2703.1948,0.00039995,2]
[421801077,1778175053000,-500.0,0.00039726,15]
[421801079,1778175053000,-500.0,0.00039726,15]
[421801080,1778175053000,-500.0,0.00039726,15]
[421801081,1778175053000,-500.0,0.00039726,15]
[421801083,1778175053000,-500.0,0.00039726,15]
[421801082,1778175053000,-500.0,0.00039726,15]
[421801084,1778175053000,-500.0,0.00039726,15]
[421801086,1778175053000,-595.62554208,0.00039726,10]
[421801095,1778175053000,-150.0,0.00039834,2]
[421801094,1778175053000,-17283.26,0.000398,2]
[421801085,1778175053000,-814.64968093,0.00039726,10]
[421801096,1778175053000,-2703.1948,0.00039858,2]
[421801087,1778175053000,-150.92541517,0.0003973,120]
[421801091,1778175053000,-180.77,0.00039789,120]
[421801088,1778175053000,-150.64456526,0.0003973,120]
[421801135,1778175053000,-735.0,0.0004,15]
[421801090,1778175053000,-25482.0,0.00039764,30]
[421801092,1778175053000,-5000.0,0.000398,2]
[421801089,1778175053000,-361.93934905,0.00039753,30]
[421801093,1778175053000,-22377.27,0.000398,2]
[421801097,1778175053000,-1203.15868,0.000399,120]
[421801098,1778175053000,-170.5,0.000399,120]
[421801099,1778175053000,-361.93934905,0.00039918,30]
[421801100,1778175053000,-2000.0,0.00039993,120]
[421801105,1778175053000,-558.06049565,0.00039999,31]
[421801106,1778175053000,-289.75129777,0.00039999,31]
[421801102,1778175053000,-257.3,0.00039999,2]
[421801108,1778175053000,-726.0,0.0004,30]
[421801140,1778175053000,-859413.31301321,0.0004,120]
[421801177,1778175053000,-184.50303424,0.00040004,120]
[421801136,1778175053000,-100000.0,0.0004,120]
[421801168,1778175053000,-176.913424,0.0004,30]
[421801169,1778175053000,-185.757503,0.0004,30]
[421801173,1778175053000,-185.757495,0.0004,30]
[421801175,1778175053000,-150.92541517,0.00040004,120]
[421801183,1778175053000,-994.46919904,0.000401,30]
[421801176,1778175053000,-150.64456526,0.00040004,120]
[421801172,1778175053000,-185.757503,0.0004,30]
[421801181,1778175053000,-160.0,0.000401,73]
[421801179,1778175053000,-361.93934905,0.00040082,30]
[421801180,1778175053000,-1002.95,0.000401,90]
[421801174,1778175053000,-150.0,0.00040001,2]
[421801178,1778175053000,-168.14219551,0.00040032,2]
[421801182,1778175053000,-160.0,0.000401,73]
[421801184,1778175053000,-994.46919903,0.000401,30]
[421801186,1778175053000,-100000.0,0.00040123,120]
[421801187,1778175053000,-2703.1948,0.00040132,2]
[421801185,1778175053000,-994.46919903,0.000401,30]
[421801188,1778175053000,-161.81,0.00040137,90]
[421801194,1778175053000,-150.0,0.00040167,120]
[421801195,1778175053000,-190.22909175,0.00040168,120]
[421801189,1778175053000,-5000.0,0.0004015,90]
[421801191,1778175053000,-177.12,0.00040167,120]
[421801190,1778175053000,-281.59,0.00040167,120]
[421801192,1778175053000,-289.06,0.00040167,120]
[421801193,1778175053000,-281.6,0.00040167,120]
[421801196,1778175053000,-333.0,0.00040171,120]
[421801197,1778175053000,-200.0,0.000402,16]
[421801170,1778175053000,-185.757503,0.0004,30]
[421801167,1778175053000,-331.1997,0.0004,30]
[421801142,1778175053000,-720.05,0.0004,120]
[421801166,1778175053000,-331.199706,0.0004,30]
[421801171,1778175053000,-151.0,0.0004,30]
[421801137,1778175053000,-65095.36857053,0.0004,120]
[421801146,1778175053000,-151.0,0.0004,30]
[421801141,1778175053000,-3333.2019941,0.0004,120]
[421801143,1778175053000,-1942.59945162,0.0004,120]
[421801145,1778175053000,-49887.58238909,0.0004,30]
[421801139,1778175053000,-298.1960774,0.0004,2]
[421801138,1778175053000,-23770.0,0.0004,120]
[421801147,1778175053000,-151.0,0.0004,30]
[421801148,1778175053000,-248.97772,0.0004,30]
[421801150,1778175053000,-163.0481,0.0004,30]
[421801160,1778175053000,-314.05566,0.0004,30]
[421801149,1778175053000,-151.0,0.0004,30]
[421801144,1778175053000,-800.0,0.0004,120]
[421801152,1778175053000,-163.0481,0.0004,30]
[421801151,1778175053000,-163.0481,0.0004,30]
[421801161,1778175053000,-151.0,0.0004,30]
[421801163,1778175053000,-151.0,0.0004,28]
[421801164,1778175053000,-331.199706,0.0004,30]
[421801158,1778175053000,-314.055662,0.0004,30]
[421801159,1778175053000,-314.055662,0.0004,30]
[421801162,1778175053000,-151.0,0.0004,30]
[421801165,1778175053000,-331.199706,0.0004,30]
[421801153,1778175053000,-163.048094,0.0004,30]
[421801157,1778175053000,-314.055662,0.0004,30]
[421801155,1778175053000,-500.0,0.0004,120]
[421801154,1778175053000,-151.0,0.0004,30]
[421801156,1778175053000,-253.94571641,0.0004,120]
[421801243,1778175054000,-300.0,0.00040749,30]
[421801235,1778175054000,-1444.0,0.00040658,120]
[421801239,1778175054000,-500.0,0.00040702,21]
[421801234,1778175054000,-200.50552662,0.00040604,2]
[421801241,1778175054000,-700.0,0.00040702,21]
[421801230,1778175054000,-150.64456526,0.00040552,120]
[421801233,1778175054000,-503.0,0.00040593,16]
[421801242,1778175054000,-361.93934905,0.00040712,30]
[421801232,1778175054000,-361.93934905,0.00040575,30]
[421801229,1778175054000,-150.92541517,0.00040552,120]
[421801236,1778175054000,-234.53057527,0.00040684,60]
[421801244,1778175054000,-458.62,0.0004075,120]
[421801237,1778175054000,-195.7,0.0004069,120]
[421801254,1778175054000,-182.92972981,0.00040901,2]
[421801238,1778175054000,-147229.65728639,0.000407,12]
[421801246,1778175054000,-3371.34,0.000408,2]
[421801256,1778175054000,-292110.0,0.0004095,60]
[421801255,1778175054000,-150.0,0.00040939,2]
[421801248,1778175054000,-150.64456526,0.00040826,120]
[421801250,1778175054000,-850.17,0.00040877,60]
[421801252,1778175054000,-5514.44136074,0.000409,30]
[421801249,1778175054000,-150.0,0.00040834,2]
[421801245,1778175054000,-11149.37,0.000408,2]
[421801247,1778175054000,-2112.22,0.000408,2]
[421801251,1778175054000,-361.93934905,0.00040877,30]
[421801253,1778175054000,-210.41445728,0.000409,8]
[421801228,1778175054000,-1560.0,0.00040548,30]
[421801240,1778175054000,-1300.0,0.00040702,21]
[421801221,1778175054000,-2171.8695376,0.00040388,2]
[421801213,1778175054000,-300.0,0.00040279,2]
[421801231,1778175054000,-190.22909175,0.0004057,120]
[421801258,1778175054000,-195.7,0.0004096,120]
[421801207,1778175054000,-150.92541517,0.00040278,120]
[421801206,1778175054000,-802.2303,0.00040269,2]
[421801200,1778175054000,-2001.4713,0.00040229,4]
[421801198,1778175054000,-300.0,0.00040217,30]
[421801203,1778175054000,-5000.0,0.0004025,90]
[421801202,1778175054000,-361.93934905,0.00040247,30]
[421801201,1778175054000,-10006.063,0.00040229,4]
[421801204,1778175054000,-2703.1958,0.00040269,2]
[421801205,1778175054000,-402.132,0.00040269,2]
[421801209,1778175054000,-300.0,0.00040279,2]
[421801219,1778175054000,-5000.0,0.00040353,6]
[421801208,1778175054000,-150.64456526,0.00040278,120]
[421801210,1778175054000,-300.0,0.00040279,2]
[421801211,1778175054000,-300.0,0.00040279,2]
[421801214,1778175054000,-300.0,0.00040279,2]
[421801217,1778175054000,-420.14,0.00040279,2]
[421801218,1778175054000,-310.0,0.00040352,74]
[421801212,1778175054000,-300.0,0.00040279,2]
[421801215,1778175054000,-300.0,0.00040279,2]
[421801216,1778175054000,-300.0,0.00040279,2]
[421801220,1778175054000,-17600.6622134,0.00040377,2]
[421801223,1778175054000,-361.93934905,0.00040411,30]
[421801226,1778175054000,-2000.0,0.00040544,120]
[421801222,1778175054000,-4056.86659,0.00040392,2]
[421801225,1778175054000,-4000.0,0.000405,100]
[421801224,1778175054000,-2500.0,0.000405,90]
[421801227,1778175054000,-1120.1,0.00040544,120]
[421801267,1778175054000,-168.46,0.00041,7]
[421801199,1778175054000,-340.0,0.00040223,2]
[421801257,1778175054000,-411.433742,0.00040958,60]
[421801289,1778175054000,-636.33,0.00041092,2]
[421801294,1778175054000,-1000.0,0.00041095,2]
[421801305,1778175054000,-522.85,0.00041095,2]
[421801293,1778175054000,-1000.0,0.00041095,2]
[421801304,1778175054000,-522.85,0.00041095,2]
[421801295,1778175054000,-1000.0,0.00041095,2]
[421801296,1778175054000,-1000.0,0.00041095,2]
[421801300,1778175054000,-1039.26412213,0.00041095,2]
[421801297,1778175054000,-1000.0,0.00041095,2]
[421801299,1778175054000,-1000.0,0.00041095,2]
[421801298,1778175054000,-1000.0,0.00041095,2]
[421801301,1778175054000,-500.0,0.00041095,2]
[421801303,1778175054000,-249.39010003,0.00041095,2]
[421801302,1778175054000,-500.0,0.00041095,2]
[421801306,1778175054000,-522.85,0.00041095,2]
[421801311,1778175054000,-522.85,0.00041095,2]
[421801308,1778175054000,-522.85,0.00041095,2]
[421801312,1778175054000,-522.85,0.00041095,2]
[421801310,1778175054000,-522.85,0.00041095,2]
[421801309,1778175054000,-522.85,0.00041095,2]
[421801307,1778175054000,-522.85,0.00041095,2]
[421801313,1778175054000,-522.85,0.00041095,2]
[421801314,1778175054000,-522.85,0.00041095,2]
[421801319,1778175054000,-522.85,0.00041095,2]
[421801315,1778175054000,-522.85,0.00041095,2]
[421801318,1778175054000,-522.85,0.00041095,2]
[421801317,1778175054000,-522.85,0.00041095,2]
[421801292,1778175054000,-1000.0,0.00041095,2]
[421801291,1778175054000,-1000.0,0.00041095,2]
[421801316,1778175054000,-522.85,0.00041095,2]
[421801287,1778175054000,-490.0,0.00041079,90]
[421801285,1778175054000,-1142.5,0.00041041,120]
[421801262,1778175054000,-571.75396358,0.00040996,2]
[421801260,1778175054000,-2455.55956113,0.00040995,2]
[421801261,1778175054000,-9509.25531589,0.00040996,2]
[421801265,1778175054000,-50000.0,0.00041,44]
[421801263,1778175054000,-401.42865456,0.00040997,2]
[421801264,1778175054000,-150.0,0.00040999,2]
[421801266,1778175054000,-440.10432445,0.00041,5]
[421801268,1778175054000,-841.30819757,0.00041,3]
[421801279,1778175054000,-100000.0,0.00041,120]
[421801278,1778175054000,-30000.0,0.00041,120]
[421801270,1778175054000,-3000.0,0.00041,30]
[421801269,1778175054000,-168.29,0.00041,5]
[421801271,1778175054000,-161.0,0.00041,120]
[421801259,1778175054000,-427.745025,0.00040995,2]
[421801272,1778175054000,-2000.0,0.00041,120]
[421801273,1778175054000,-162.16595366,0.00041,2]
[421801284,1778175054000,-2000.0,0.0004101,120]
[421801288,1778175054000,-1300.798,0.00041086,120]
[421801283,1778175054000,-150.0,0.00041001,2]
[421801281,1778175054000,-199.96695857,0.00041,2]
[421801290,1778175054000,-1000.0,0.00041095,2]
[421801280,1778175054000,-3566.76984314,0.00041,30]
[421801274,1778175054000,-2500.0,0.00041,90]
[421801282,1778175054000,-6045.3775042,0.00041,30]
[421801286,1778175054000,-361.93934905,0.00041041,30]
[421801277,1778175054000,-716.0,0.00041,120]
[421801276,1778175054000,-164099.29768909,0.00041,7]
[421801275,1778175054000,-5154.52504205,0.00041,30]
[421801348,1778175055000,-500.0,0.00041095,2]
[421801360,1778175055000,-500.0,0.00041095,2]
[421801356,1778175055000,-500.0,0.00041095,2]
[421801351,1778175055000,-500.0,0.00041095,2]
[421801350,1778175055000,-500.0,0.00041095,2]
[421801355,1778175055000,-500.0,0.00041095,2]
[421801352,1778175055000,-500.0,0.00041095,2]
[421801354,1778175055000,-500.0,0.00041095,2]
[421801358,1778175055000,-500.0,0.00041095,2]
[421801359,1778175055000,-500.0,0.00041095,2]
[421801353,1778175055000,-500.0,0.00041095,2]
[421801367,1778175055000,-500.0,0.00041095,2]
[421801365,1778175055000,-500.0,0.00041095,2]
[421801361,1778175055000,-500.0,0.00041095,2]
[421801362,1778175055000,-353.4340236,0.00041095,2]
[421801364,1778175055000,-637.97400374,0.00041095,2]
[421801349,1778175055000,-500.0,0.00041095,2]
[421801371,1778175055000,-300.0,0.00041095,2]
[421801368,1778175055000,-500.0,0.00041095,2]
[421801370,1778175055000,-284.82822843,0.00041095,2]
[421801366,1778175055000,-500.0,0.00041095,2]
[421801369,1778175055000,-500.0,0.00041095,2]
[421801373,1778175055000,-300.0,0.00041095,2]
[421801383,1778175055000,-1000.0,0.00041095,7]
[421801372,1778175055000,-300.0,0.00041095,2]
[421801363,1778175055000,-500.0,0.00041095,2]
[421801346,1778175055000,-500.0,0.00041095,2]
[421801335,1778175055000,-500.0,0.00041095,2]
[421801357,1778175055000,-500.0,0.00041095,2]
[421801374,1778175055000,-300.0,0.00041095,2]
[421801331,1778175055000,-500.0,0.00041095,2]
[421801330,1778175055000,-500.0,0.00041095,2]
[421801320,1778175055000,-522.85,0.00041095,2]
[421801321,1778175055000,-522.85,0.00041095,2]
[421801322,1778175055000,-522.85,0.00041095,2]
[421801324,1778175055000,-522.85,0.00041095,2]
[421801328,1778175055000,-200.89315,0.00041095,2]
[421801326,1778175055000,-522.85,0.00041095,2]
[421801329,1778175055000,-500.0,0.00041095,2]
[421801327,1778175055000,-522.94937397,0.00041095,2]
[421801323,1778175055000,-522.85,0.00041095,2]
[421801325,1778175055000,-522.85,0.00041095,2]
[421801332,1778175055000,-500.0,0.00041095,2]
[421801343,1778175055000,-500.0,0.00041095,2]
[421801342,1778175055000,-500.0,0.00041095,2]
[421801345,1778175055000,-500.0,0.00041095,2]
[421801344,1778175055000,-500.0,0.00041095,2]
[421801334,1778175055000,-500.0,0.00041095,2]
[421801341,1778175055000,-500.0,0.00041095,2]
[421801336,1778175055000,-500.0,0.00041095,2]
[421801338,1778175055000,-500.0,0.00041095,2]
[421801337,1778175055000,-500.0,0.00041095,2]
[421801340,1778175055000,-500.0,0.00041095,2]
[421801339,1778175055000,-500.0,0.00041095,2]
[421801347,1778175055000,-500.0,0.00041095,2]
[421801333,1778175055000,-500.0,0.00041095,2]
[421801378,1778175055000,-300.0,0.00041095,2]
[421801379,1778175055000,-300.0,0.00041095,2]
[421801410,1778175055000,-150.0,0.00041096,10]
[421801421,1778175055000,-151.0,0.00041096,120]
[421801420,1778175055000,-151.0,0.00041096,120]
[421801413,1778175055000,-150.0,0.00041096,10]
[421801411,1778175055000,-150.0,0.00041096,10]
[421801414,1778175055000,-150.0,0.00041096,10]
[421801412,1778175055000,-150.0,0.00041096,10]
[421801409,1778175055000,-150.0,0.00041096,10]
[421801416,1778175055000,-2050.86020936,0.00041096,10]
[421801417,1778175055000,-151.0,0.00041096,120]
[421801415,1778175055000,-150.0,0.00041096,10]
[421801419,1778175055000,-151.0,0.00041096,120]
[421801433,1778175055000,-151.0,0.00041096,120]
[421801423,1778175055000,-151.0,0.00041096,120]
[421801422,1778175055000,-151.0,0.00041096,120]
[421801425,1778175055000,-151.0,0.00041096,120]
[421801428,1778175055000,-151.0,0.00041096,120]
[421801424,1778175055000,-151.0,0.00041096,120]
[421801429,1778175055000,-151.0,0.00041096,120]
[421801427,1778175055000,-235.279175,0.00041096,120]
[421801426,1778175055000,-151.0,0.00041096,120]
[421801431,1778175055000,-151.0,0.00041096,120]
[421801432,1778175055000,-2813.942987,0.00041096,120]
[421801430,1778175055000,-151.0,0.00041096,120]
[421801376,1778175055000,-300.0,0.00041095,2]
[421801401,1778175055000,-150.0,0.00041096,10]
[421801400,1778175055000,-150.0,0.00041096,10]
[421801418,1778175055000,-151.0,0.00041096,120]
[421801403,1778175055000,-150.0,0.00041096,10]
[421801380,1778175055000,-300.0,0.00041095,2]
[421801402,1778175055000,-150.0,0.00041096,10]
[421801377,1778175055000,-300.0,0.00041095,2]
[421801381,1778175055000,-300.0,0.00041095,2]
[421801382,1778175055000,-155.41224873,0.00041095,2]
[421801375,1778175055000,-300.0,0.00041095,2]
[421801384,1778175055000,-1000.0,0.00041095,7]
[421801386,1778175055000,-250.0,0.00041096,100]
[421801394,1778175055000,-150.0,0.00041096,10]
[421801385,1778175055000,-927.14415902,0.00041095,7]
[421801391,1778175055000,-150.0,0.00041096,10]
[421801392,1778175055000,-150.0,0.00041096,10]
[421801387,1778175055000,-150.0,0.00041096,10]
[421801388,1778175055000,-150.0,0.00041096,10]
[421801398,1778175055000,-150.0,0.00041096,10]
[421801399,1778175055000,-196.948336,0.00041096,10]
[421801393,1778175055000,-150.0,0.00041096,10]
[421801405,1778175055000,-150.0,0.00041096,10]
[421801397,1778175055000,-150.0,0.00041096,10]
[421801408,1778175055000,-150.0,0.00041096,10]
[421801407,1778175055000,-150.0,0.00041096,10]
[421801406,1778175055000,-150.0,0.00041096,10]
[421801390,1778175055000,-150.0,0.00041096,10]
[421801396,1778175055000,-150.0,0.00041096,10]
[421801395,1778175055000,-150.0,0.00041096,10]
[421801389,1778175055000,-150.0,0.00041096,10]
[421801404,1778175055000,-150.0,0.00041096,10]
[421801481,1778175056000,-2934.863912,0.00041096,120]
[421801476,1778175056000,-2458.914538,0.00041096,120]
[421801473,1778175056000,-2458.914538,0.00041096,120]
[421801475,1778175056000,-2458.914538,0.00041096,120]
[421801471,1778175056000,-2458.914538,0.00041096,120]
[421801462,1778175056000,-2458.914538,0.00041096,120]
[421801466,1778175056000,-2458.914538,0.00041096,120]
[421801465,1778175056000,-2458.914538,0.00041096,120]
[421801464,1778175056000,-2458.914538,0.00041096,120]
[421801461,1778175056000,-2458.914538,0.00041096,120]
[421801478,1778175056000,-2458.914538,0.00041096,120]
[421801468,1778175056000,-2458.914538,0.00041096,120]
[421801474,1778175056000,-2458.914538,0.00041096,120]
[421801489,1778175056000,-2934.863912,0.00041096,120]
[421801480,1778175056000,-2458.914545,0.00041096,120]
[421801472,1778175056000,-2458.914538,0.00041096,120]
[421801470,1778175056000,-2458.914538,0.00041096,120]
[421801479,1778175056000,-2458.914538,0.00041096,120]
[421801482,1778175056000,-2934.863912,0.00041096,120]
[421801484,1778175056000,-2934.863912,0.00041096,120]
[421801485,1778175056000,-2934.863912,0.00041096,120]
[421801486,1778175056000,-2934.863912,0.00041096,120]
[421801487,1778175056000,-2934.863912,0.00041096,120]